[Event "Live Chess"]
[Site "Chess.com"]
[Date "2023.05.20"]
[Round "-"]
[White "GEMdzq"]
[Black "Missedidea"]
[Result "0-1"]
[WhiteElo "2255"]
[BlackElo "1739"]
[TimeControl "300"]
[EndTime "13:03:25 PDT"]
[Termination "Missedidea won on time"]

1. e4 {[%clk 0:04:56.5]} 1... c5 {[%clk 0:04:57.6]} 2. d4 {[%clk 0:04:55.4]}
2... cxd4 {[%clk 0:04:55.6]} 3. c3 {[%clk 0:04:54.5]} 3... dxc3 {[%clk
0:04:54.7]} 4. Nxc3 {[%clk 0:04:54.4]} 4... Nc6 {[%clk 0:04:52.2]} 5. Bc4 {[%clk
0:04:53.8]} 5... e6 {[%clk 0:04:49.6]} 6. Nf3 {[%clk 0:04:52.9]} 6... a6 {[%clk
0:04:48.2]} 7. O-O {[%clk 0:04:51.8]} 7... d6 {[%clk 0:04:45.1]} 8. Qe2 {[%clk
0:04:50.3]} 8... Bd7 {[%clk 0:04:42]} 9. Rd1 {[%clk 0:04:48.8]} 9... b5 {[%clk
0:04:35.3]} 10. Bb3 {[%clk 0:04:34.9]} 10... Qb8 {[%clk 0:04:33.1]} 11. Bf4
{[%clk 0:04:33.6]} 11... Ne5 {[%clk 0:04:25.8]} 12. Rd2 {[%clk 0:04:25]} 12...
Nf6 {[%clk 0:04:23.7]} 13. Rad1 {[%clk 0:04:23.5]} 13... Be7 {[%clk 0:04:12.7]}
14. Bg5 {[%clk 0:04:22.7]} 14... Bc6 {[%clk 0:03:58.6]} 15. Nd4 {[%clk
0:04:16.7]} 15... Bb7 {[%clk 0:03:46.5]} 16. f4 {[%clk 0:04:08.2]} 16... Nc6
{[%clk 0:03:35.4]} 17. e5 {[%clk 0:03:56.2]} 17... Nxd4 {[%clk 0:03:32.1]} 18.
Rxd4 {[%clk 0:03:54.1]} 18... dxe5 {[%clk 0:03:19.9]} 19. fxe5 {[%clk
0:03:53.1]} 19... Nd5 {[%clk 0:03:09.5]} 20. Bxe7 {[%clk 0:03:48.6]} 20... Nxe7
{[%clk 0:03:07.3]} 21. Qg4 {[%clk 0:03:38.2]} 21... O-O {[%clk 0:03:01.4]} 22.
Qg5 {[%clk 0:03:16.4]} 22... Nf5 {[%clk 0:02:54.3]} 23. Rg4 {[%clk 0:03:01.5]}
23... Qa7+ {[%clk 0:02:46.7]} 24. Kh1 {[%clk 0:02:48.8]} 24... h6 {[%clk
0:02:39.2]} 25. Qf4 {[%clk 0:02:39.8]} 25... Ne3 {[%clk 0:02:27.9]} 26. Rxg7+
{[%clk 0:01:48.7]} 26... Kxg7 {[%clk 0:02:25.2]} 27. Qf6+ {[%clk 0:01:47.7]}
27... Kh7 {[%clk 0:02:16.9]} 28. Rg1 {[%clk 0:01:11.4]} 28... Rad8 {[%clk
0:01:49.1]} 29. Nd1 {[%clk 0:00:54.8]} 29... Rxd1 {[%clk 0:01:39.7]} 30. Bxd1
{[%clk 0:00:33.4]} 30... Qd4 {[%clk 0:01:28.8]} 31. Bh5 {[%clk 0:00:23.9]} 31...
Ng4 {[%clk 0:01:15.4]} 32. Bxg4 {[%clk 0:00:13.7]} 32... Qxg4 {[%clk 0:01:12.8]}
33. Qe7 {[%clk 0:00:11]} 33... Qg7 {[%clk 0:01:08.4]} 34. Qxb7 {[%clk
0:00:09.9]} 34... Qxe5 {[%clk 0:01:05.5]} 35. Qxa6 {[%clk 0:00:09.5]} 35... Rg8
{[%clk 0:01:01.2]} 36. Qb7 {[%clk 0:00:09]} 36... Qf5 {[%clk 0:00:55.5]} 37. Qc6
{[%clk 0:00:07.5]} 37... Rg5 {[%clk 0:00:51.4]} 38. Rc1 {[%clk 0:00:07.4]} 38...
Rh5 {[%clk 0:00:48.6]} 39. Kg1 {[%clk 0:00:06.9]} 39... Kg6 {[%clk 0:00:42.8]}
40. Qc2 {[%clk 0:00:06.8]} 40... Qxc2 {[%clk 0:00:40.1]} 41. Rxc2 {[%clk
0:00:06.7]} 41... Rd5 {[%clk 0:00:37.8]} 42. Kf2 {[%clk 0:00:06.6]} 42... e5
{[%clk 0:00:34.4]} 43. g3 {[%clk 0:00:06]} 43... f5 {[%clk 0:00:32.8]} 44. Ke3
{[%clk 0:00:05.9]} 44... Kg5 {[%clk 0:00:30.3]} 45. h3 {[%clk 0:00:05.4]} 45...
h5 {[%clk 0:00:28.5]} 46. Rc8 {[%clk 0:00:05.3]} 46... f4+ {[%clk 0:00:23.5]}
47. gxf4+ {[%clk 0:00:04.7]} 47... exf4+ {[%clk 0:00:22.1]} 48. Ke4 {[%clk
0:00:04.6]} 48... Rd2 {[%clk 0:00:20.2]} 49. Rg8+ {[%clk 0:00:04.5]} 49... Kf6
{[%clk 0:00:17.2]} 50. Kxf4 {[%clk 0:00:04.4]} 50... Rxb2 {[%clk 0:00:14.5]} 51.
Rh8 {[%clk 0:00:04.3]} 51... Rxa2 {[%clk 0:00:13.3]} 52. Rxh5 {[%clk 0:00:04]}
52... Ra4+ {[%clk 0:00:11.6]} 53. Kf3 {[%clk 0:00:02.6]} 53... Rb4 {[%clk
0:00:10.5]} 54. Rc5 {[%clk 0:00:01.3]} 54... Rb3+ {[%clk 0:00:09.3]} 0-1

[Event "Live Chess"]
[Site "Chess.com"]
[Date "2023.05.20"]
[Round "-"]
[White "LiamBellwood"]
[Black "apl_trainer"]
[Result "0-1"]
[WhiteElo "2053"]
[BlackElo "1736"]
[TimeControl "300"]
[EndTime "13:03:25 PDT"]
[Termination "apl_trainer won by resignation"]

1. d4 {[%clk 0:04:59.4]} 1... Nf6 {[%clk 0:04:58.2]} 2. Nc3 {[%clk 0:04:59]}
2... d5 {[%clk 0:04:56.6]} 3. Bf4 {[%clk 0:04:58.4]} 3... a6 {[%clk 0:04:54.3]}
4. e3 {[%clk 0:04:57.4]} 4... c5 {[%clk 0:04:53]} 5. dxc5 {[%clk 0:04:57.3]}
5... Qa5 {[%clk 0:04:50.3]} 6. Nf3 {[%clk 0:04:49]} 6... Qxc5 {[%clk 0:04:48.3]}
7. Qd4 {[%clk 0:04:43.1]} 7... e6 {[%clk 0:04:39.6]} 8. Be2 {[%clk 0:04:34.4]}
8... Nc6 {[%clk 0:04:37.7]} 9. Qxc5 {[%clk 0:04:28.9]} 9... Bxc5 {[%clk
0:04:36.3]} 10. O-O-O {[%clk 0:04:23.7]} 10... b5 {[%clk 0:04:32.7]} 11. Ne5
{[%clk 0:04:19.6]} 11... Bb7 {[%clk 0:04:27.1]} 12. Bf3 {[%clk 0:04:12.8]} 12...
Rc8 {[%clk 0:04:19.4]} 13. Kb1 {[%clk 0:04:11.5]} 13... O-O {[%clk 0:04:13.1]}
14. g4 {[%clk 0:04:01.2]} 14... Nxe5 {[%clk 0:04:05.7]} 15. Bxe5 {[%clk
0:04:01.1]} 15... Nd7 {[%clk 0:04:03.1]} 16. Bg3 {[%clk 0:03:57.6]} 16... Nb6
{[%clk 0:04:00.6]} 17. Be5 {[%clk 0:03:46.2]} 17... Nc4 {[%clk 0:03:58.9]} 18.
Bd4 {[%clk 0:03:42.1]} 18... Bxd4 {[%clk 0:03:48.8]} 19. Rxd4 {[%clk 0:03:29.6]}
19... Rc7 {[%clk 0:03:45]} 20. Rhd1 {[%clk 0:02:51.8]} 20... Rfc8 {[%clk
0:03:41.6]} 21. R4d3 {[%clk 0:02:32.1]} 21... Ne5 {[%clk 0:03:38.7]} 22. Nxd5
{[%clk 0:02:28.6]} 22... exd5 {[%clk 0:03:30.4]} 23. Rxd5 {[%clk 0:02:21.2]}
23... Bxd5 {[%clk 0:03:23.1]} 24. Bxd5 {[%clk 0:02:19.4]} 24... Rxc2 {[%clk
0:03:16.2]} 25. f4 {[%clk 0:02:18.6]} 25... Nxg4 {[%clk 0:03:11.6]} 26. Be4
{[%clk 0:01:56.8]} 26... Rxh2 {[%clk 0:03:03.5]} 27. Bf5 {[%clk 0:01:48.7]}
27... Re8 {[%clk 0:02:50.6]} 28. Bxg4 {[%clk 0:01:46.3]} 28... h5 {[%clk
0:02:48.6]} 29. Bf5 {[%clk 0:01:42.2]} 29... g6 {[%clk 0:02:44.8]} 30. Bd3
{[%clk 0:01:24]} 30... Rxe3 {[%clk 0:02:42.5]} 31. f5 {[%clk 0:01:21.1]} 31...
Kg7 {[%clk 0:02:39.1]} 32. fxg6 {[%clk 0:01:16.7]} 32... fxg6 {[%clk 0:02:37.3]}
0-1

[Event "Live Chess"]
[Site "Chess.com"]
[Date "2023.05.20"]
[Round "-"]
[White "smoggyrabbit"]
[Black "booktrunk"]
[Result "1-0"]
[WhiteElo "1668"]
[BlackElo "1290"]
[TimeControl "300"]
[EndTime "13:03:31 PDT"]
[Termination "smoggyrabbit won by resignation"]

1. d4 {[%clk 0:04:59.3]} 1... d5 {[%clk 0:04:59.9]} 2. Nf3 {[%clk 0:04:58.3]}
2... Nc6 {[%clk 0:04:57.5]} 3. e3 {[%clk 0:04:57.3]} 3... f6 {[%clk 0:04:54.6]}
4. Bd3 {[%clk 0:04:49.6]} 4... e5 {[%clk 0:04:53.2]} 5. dxe5 {[%clk 0:04:42.1]}
5... fxe5 {[%clk 0:04:52.5]} 6. Be2 {[%clk 0:04:26.9]} 6... e4 {[%clk
0:04:51.2]} 7. Nd4 {[%clk 0:04:22.6]} 7... Nce7 {[%clk 0:04:50]} 8. O-O {[%clk
0:04:19.9]} 8... c6 {[%clk 0:04:48.8]} 9. c4 {[%clk 0:04:16.6]} 9... dxc4 {[%clk
0:04:44.9]} 10. Bxc4 {[%clk 0:04:14.8]} 10... Nf5 {[%clk 0:04:43.9]} 11. Nxf5
{[%clk 0:04:07.9]} 11... Bxf5 {[%clk 0:04:42]} 12. Qb3 {[%clk 0:04:02.3]} 12...
Qe7 {[%clk 0:04:37.1]} 13. Bxg8 {[%clk 0:03:58.9]} 13... O-O-O {[%clk
0:04:30.6]} 14. Bc4 {[%clk 0:03:50.4]} 14... g6 {[%clk 0:04:27.9]} 15. Nc3
{[%clk 0:03:46.7]} 15... Bg7 {[%clk 0:04:26.8]} 16. Qa4 {[%clk 0:03:37.3]} 16...
b5 {[%clk 0:04:21.9]} 17. Qa6+ {[%clk 0:03:21.9]} 17... Kb8 {[%clk 0:04:21.2]}
18. Bb3 {[%clk 0:03:15.8]} 18... Bxc3 {[%clk 0:04:19.7]} 19. bxc3 {[%clk
0:03:14.3]} 19... Rd3 {[%clk 0:04:14.7]} 20. Qxc6 {[%clk 0:03:10]} 20... Rc8
{[%clk 0:04:12.4]} 21. Qxb5+ {[%clk 0:03:08.6]} 21... Qb7 {[%clk 0:04:07.6]} 22.
Qxb7+ {[%clk 0:02:52.6]} 22... Kxb7 {[%clk 0:04:06.2]} 23. Bb2 {[%clk
0:02:50.2]} 23... Rd2 {[%clk 0:04:02.4]} 24. Rab1 {[%clk 0:02:47.1]} 24... Kc7
{[%clk 0:04:01]} 25. c4 {[%clk 0:02:41.5]} 25... Rb8 {[%clk 0:03:59.2]} 26. Be5+
{[%clk 0:02:39.9]} 1-0

[Event "Live Chess"]
[Site "Chess.com"]
[Date "2023.05.20"]
[Round "-"]
[White "birdseed45"]
[Black "siddu198"]
[Result "1-0"]
[WhiteElo "1893"]
[BlackElo "1599"]
[TimeControl "300"]
[EndTime "13:03:35 PDT"]
[Termination "birdseed45 won by resignation"]

1. e4 {[%clk 0:04:58.2]} 1... e5 {[%clk 0:04:59.1]} 2. Nf3 {[%clk 0:04:55.1]}
2... Nc6 {[%clk 0:04:58.8]} 3. Bb5 {[%clk 0:04:53.1]} 3... Bc5 {[%clk
0:04:58.6]} 4. O-O {[%clk 0:04:47.4]} 4... d6 {[%clk 0:04:55.3]} 5. h3 {[%clk
0:04:40.6]} 5... Nf6 {[%clk 0:04:52.8]} 6. Re1 {[%clk 0:04:38]} 6... O-O {[%clk
0:04:52.7]} 7. c3 {[%clk 0:04:36.3]} 7... a6 {[%clk 0:04:52]} 8. Ba4 {[%clk
0:04:34.7]} 8... b5 {[%clk 0:04:51.2]} 9. Bb3 {[%clk 0:04:33.1]} 9... a5 {[%clk
0:04:50.8]} 10. a3 {[%clk 0:04:31.6]} 10... a4 {[%clk 0:04:50.5]} 11. Ba2 {[%clk
0:04:29.8]} 11... Ne7 {[%clk 0:04:47.3]} 12. d4 {[%clk 0:04:24.9]} 12... exd4
{[%clk 0:04:46.2]} 13. cxd4 {[%clk 0:04:24.8]} 13... Bb6 {[%clk 0:04:44]} 14.
Bg5 {[%clk 0:04:23.4]} 14... Ng6 {[%clk 0:04:43]} 15. Nbd2 {[%clk 0:04:20]}
15... h6 {[%clk 0:04:41.8]} 16. Bxf6 {[%clk 0:04:03.2]} 16... Qxf6 {[%clk
0:04:41.7]} 17. e5 {[%clk 0:04:01.8]} 17... dxe5 {[%clk 0:04:31]} 18. dxe5
{[%clk 0:04:01.7]} 18... Qe7 {[%clk 0:04:22.1]} 19. Qc2 {[%clk 0:03:58.6]} 19...
Bb7 {[%clk 0:04:20.4]} 20. Qxg6 {[%clk 0:03:56.3]} 20... Bxf3 {[%clk 0:04:17.8]}
21. Nxf3 {[%clk 0:03:55.6]} 21... c5 {[%clk 0:04:11]} 22. Qxb6 {[%clk
0:03:54.1]} 22... c4 {[%clk 0:04:10.9]} 1-0

[Event "Live Chess"]
[Site "Chess.com"]
[Date "2023.05.20"]
[Round "-"]
[White "RoaringKnights"]
[Black "lightningorderyt"]
[Result "1-0"]
[WhiteElo "994"]
[BlackElo "525"]
[TimeControl "300"]
[EndTime "13:03:45 PDT"]
[Termination "RoaringKnights won on time"]

1. e4 {[%clk 0:04:58.2]} 1... c6 {[%clk 0:04:58.6]} 2. Bc4 {[%clk 0:04:56.7]}
2... d5 {[%clk 0:04:52.4]} 3. exd5 {[%clk 0:04:55.1]} 3... cxd5 {[%clk
0:04:49.6]} 4. Bb3 {[%clk 0:04:48.3]} 4... Nf6 {[%clk 0:04:47.5]} 5. Nc3 {[%clk
0:04:44.7]} 5... e5 {[%clk 0:04:27.9]} 6. Ba4+ {[%clk 0:04:39.2]} 6... Nc6
{[%clk 0:04:18.8]} 7. Bxc6+ {[%clk 0:04:36.9]} 7... bxc6 {[%clk 0:04:18.1]} 8.
d3 {[%clk 0:04:31.4]} 8... Bf5 {[%clk 0:04:10.5]} 9. Nf3 {[%clk 0:04:29.1]} 9...
Qe7 {[%clk 0:04:05]} 10. Bg5 {[%clk 0:04:25.4]} 10... h6 {[%clk 0:04:01.1]} 11.
Bh4 {[%clk 0:04:23.1]} 11... g5 {[%clk 0:03:49.2]} 12. Bg3 {[%clk 0:04:21.1]}
12... e4 {[%clk 0:03:27.1]} 13. Ne5 {[%clk 0:04:14.5]} 13... Rc8 {[%clk
0:03:10.3]} 14. h4 {[%clk 0:04:09.4]} 14... gxh4 {[%clk 0:02:57.4]} 15. Rxh4
{[%clk 0:04:05.6]} 15... Bg7 {[%clk 0:02:55.2]} 16. Qe2 {[%clk 0:03:49.3]} 16...
O-O {[%clk 0:02:37.1]} 17. O-O-O {[%clk 0:03:38.5]} 17... d4 {[%clk 0:02:34.8]}
18. Nb1 {[%clk 0:03:27.8]} 18... c5 {[%clk 0:02:03.1]} 19. dxe4 {[%clk
0:03:24.3]} 19... Bg6 {[%clk 0:01:50.4]} 20. Nxg6 {[%clk 0:03:04.8]} 20... fxg6
{[%clk 0:01:43.9]} 21. e5 {[%clk 0:02:58.4]} 21... Nh5 {[%clk 0:01:36.5]} 22.
Qd3 {[%clk 0:02:46.3]} 22... Nxg3 {[%clk 0:01:31.8]} 23. fxg3 {[%clk 0:02:41.6]}
23... g5 {[%clk 0:01:23.9]} 24. Rh5 {[%clk 0:02:34.1]} 24... Qxe5 {[%clk
0:01:19.7]} 25. Qc4+ {[%clk 0:02:23.6]} 25... Kh8 {[%clk 0:01:16.4]} 26. Qd3
{[%clk 0:02:18.9]} 26... c4 {[%clk 0:01:06.3]} 27. Qd2 {[%clk 0:01:28.9]} 27...
Qxg3 {[%clk 0:01:02.3]} 28. Qe1 {[%clk 0:01:02]} 28... Qxg2 {[%clk 0:00:54.3]}
29. Qd2 {[%clk 0:00:43.8]} 29... Qxd2+ {[%clk 0:00:50.9]} 30. Nxd2 {[%clk
0:00:41.6]} 30... Be5 {[%clk 0:00:47.1]} 31. Rg1 {[%clk 0:00:36.4]} 31... Kh7
{[%clk 0:00:38]} 32. Rgxg5 {[%clk 0:00:27.8]} 32... Bf4 {[%clk 0:00:31.6]} 33.
Rg1 {[%clk 0:00:17.7]} 33... Bxd2+ {[%clk 0:00:26.3]} 34. Kxd2 {[%clk
0:00:16.5]} 34... Rf2+ {[%clk 0:00:22.6]} 35. Kc1 {[%clk 0:00:15.1]} 35... Rcf8
{[%clk 0:00:20.5]} 36. Rhh1 {[%clk 0:00:13.3]} 36... h5 {[%clk 0:00:18.5]} 37.
b3 {[%clk 0:00:12.6]} 37... Kh6 {[%clk 0:00:16.3]} 38. bxc4 {[%clk 0:00:11]}
38... d3 {[%clk 0:00:13.2]} 39. cxd3 {[%clk 0:00:07.8]} 39... Rxa2 {[%clk
0:00:10.5]} 40. Kb1 {[%clk 0:00:06.6]} 40... Ra3 {[%clk 0:00:09.2]} 41. Kb2
{[%clk 0:00:05.7]} 41... Rxd3 {[%clk 0:00:08.3]} 42. Kc2 {[%clk 0:00:04.3]}
42... Rd4 {[%clk 0:00:06.8]} 43. Kc3 {[%clk 0:00:03.7]} 43... Rdf4 {[%clk
0:00:05.4]} 44. Rg2 {[%clk 0:00:01.9]} 44... Rf3+ {[%clk 0:00:03]} 45. Kb4
{[%clk 0:00:01]} 45... R3f4 {[%clk 0:00:01]} 46. Kc5 {[%clk 0:00:00.3]} 1-0

[Event "Live Chess"]
[Site "Chess.com"]
[Date "2023.05.20"]
[Round "-"]
[White "ExIsambard"]
[Black "Hacker_2009"]
[Result "0-1"]
[WhiteElo "2003"]
[BlackElo "1908"]
[TimeControl "300"]
[EndTime "13:04:09 PDT"]
[Termination "Hacker_2009 won by resignation"]

1. d4 {[%clk 0:04:59.1]} 1... Nf6 {[%clk 0:04:57.2]} 2. Nf3 {[%clk 0:04:58.3]}
2... e6 {[%clk 0:04:56.6]} 3. Bg5 {[%clk 0:04:58]} 3... d5 {[%clk 0:04:56.3]} 4.
e3 {[%clk 0:04:57.3]} 4... Be7 {[%clk 0:04:55.9]} 5. Bd3 {[%clk 0:04:56.7]} 5...
O-O {[%clk 0:04:55.6]} 6. Nbd2 {[%clk 0:04:56]} 6... b6 {[%clk 0:04:55.3]} 7. h4
{[%clk 0:04:54.4]} 7... Bb7 {[%clk 0:04:54.5]} 8. Qe2 {[%clk 0:04:53]} 8... c5
{[%clk 0:04:54]} 9. c3 {[%clk 0:04:52]} 9... cxd4 {[%clk 0:04:52.6]} 10. exd4
{[%clk 0:04:51.1]} 10... Nc6 {[%clk 0:04:51.4]} 11. O-O-O {[%clk 0:04:50.2]}
11... Rc8 {[%clk 0:04:50.4]} 12. Kb1 {[%clk 0:04:48.4]} 12... Na5 {[%clk
0:04:48.9]} 13. Rdg1 {[%clk 0:04:47.1]} 13... Nc4 {[%clk 0:04:44.4]} 14. Bxf6
{[%clk 0:04:45.2]} 14... Bxf6 {[%clk 0:04:42.5]} 15. g4 {[%clk 0:04:43.9]} 15...
Nxd2+ {[%clk 0:04:26.8]} 16. Qxd2 {[%clk 0:04:37.8]} 16... Be7 {[%clk
0:04:25.6]} 17. g5 {[%clk 0:04:35.7]} 17... a6 {[%clk 0:04:19.4]} 18. h5 {[%clk
0:04:34.8]} 18... b5 {[%clk 0:04:18.6]} 19. Ne5 {[%clk 0:04:25.2]} 19... b4
{[%clk 0:04:12.5]} 20. Bxh7+ {[%clk 0:04:02.5]} 20... Kxh7 {[%clk 0:04:08.2]}
21. g6+ {[%clk 0:04:01.6]} 21... Kg8 {[%clk 0:04:06.1]} 22. gxf7+ {[%clk
0:04:00.2]} 22... Rxf7 {[%clk 0:04:04]} 23. Qh6 {[%clk 0:03:48.7]} 23... Bf6
{[%clk 0:03:45.7]} 24. Nxf7 {[%clk 0:03:46.9]} 24... Kxf7 {[%clk 0:03:43.2]} 25.
Qg6+ {[%clk 0:03:45.2]} 25... Ke7 {[%clk 0:03:41.3]} 26. cxb4 {[%clk 0:03:42.3]}
26... Qb6 {[%clk 0:03:33.2]} 27. h6 {[%clk 0:03:34.4]} 27... Qxd4 {[%clk
0:03:32.1]} 0-1

[Event "Live Chess"]
[Site "Chess.com"]
[Date "2023.05.20"]
[Round "-"]
[White "JoshMcK"]
[Black "Woodpusher500"]
[Result "1-0"]
[WhiteElo "1571"]
[BlackElo "1285"]
[TimeControl "300"]
[EndTime "13:04:13 PDT"]
[Termination "JoshMcK won by resignation"]

1. e4 {[%clk 0:04:59.5]} 1... e5 {[%clk 0:04:57.6]} 2. Nf3 {[%clk 0:04:54.9]}
2... Nc6 {[%clk 0:04:52.5]} 3. Bb5 {[%clk 0:04:52.9]} 3... f5 {[%clk 0:04:50.6]}
4. d3 {[%clk 0:04:50]} 4... fxe4 {[%clk 0:04:43.1]} 5. dxe4 {[%clk 0:04:49.9]}
5... Nf6 {[%clk 0:04:34.9]} 6. O-O {[%clk 0:04:43.4]} 6... d6 {[%clk 0:04:13]}
7. Nc3 {[%clk 0:04:36.9]} 7... Bd7 {[%clk 0:04:07.4]} 8. Bg5 {[%clk 0:04:32.1]}
8... Be7 {[%clk 0:04:00.2]} 9. Bxf6 {[%clk 0:04:27.7]} 9... Bxf6 {[%clk
0:03:56.6]} 10. Nd5 {[%clk 0:04:27]} 10... O-O {[%clk 0:03:43.3]} 11. Bc4 {[%clk
0:04:22.3]} 11... Na5 {[%clk 0:03:16.8]} 12. Nxf6+ {[%clk 0:04:18.7]} 12... Kh8
{[%clk 0:03:09.7]} 13. Nxd7 {[%clk 0:04:15.6]} 13... Qxd7 {[%clk 0:03:05.2]} 14.
Bd5 {[%clk 0:04:14.2]} 14... c6 {[%clk 0:03:03.1]} 15. Bb3 {[%clk 0:04:12.9]}
15... Rf6 {[%clk 0:02:54.4]} 16. Ng5 {[%clk 0:04:05.1]} 16... Rg6 {[%clk
0:02:45.9]} 17. Nf7+ {[%clk 0:03:59.7]} 17... Kg8 {[%clk 0:02:29.4]} 18. Nxe5+
{[%clk 0:03:58]} 18... Kf8 {[%clk 0:02:23.8]} 19. Nxd7+ {[%clk 0:03:56.8]} 1-0

[Event "Live Chess"]
[Site "Chess.com"]
[Date "2023.05.20"]
[Round "-"]
[White "YrrriKharkiv"]
[Black "ViktorTheCoolBoy"]
[Result "0-1"]
[WhiteElo "2036"]
[BlackElo "2518"]
[TimeControl "300"]
[EndTime "13:04:27 PDT"]
[Termination "ViktorTheCoolBoy won by resignation"]

1. d4 {[%clk 0:04:51.8]} 1... Nf6 {[%clk 0:04:57.7]} 2. Bf4 {[%clk 0:04:48.9]}
2... e6 {[%clk 0:04:55.8]} 3. e3 {[%clk 0:04:47.9]} 3... c5 {[%clk 0:04:54.5]}
4. c3 {[%clk 0:04:46.7]} 4... d5 {[%clk 0:04:52.4]} 5. Nf3 {[%clk 0:04:44.3]}
5... Bd6 {[%clk 0:04:48.4]} 6. Bg3 {[%clk 0:04:40.2]} 6... O-O {[%clk
0:04:40.6]} 7. Nbd2 {[%clk 0:04:39.3]} 7... Qc7 {[%clk 0:04:39.9]} 8. Bd3 {[%clk
0:04:33.6]} 8... Nbd7 {[%clk 0:04:38.2]} 9. O-O {[%clk 0:04:20.3]} 9... Bxg3
{[%clk 0:04:36.8]} 10. hxg3 {[%clk 0:04:18.5]} 10... e5 {[%clk 0:04:36.3]} 11.
dxe5 {[%clk 0:04:16.6]} 11... Nxe5 {[%clk 0:04:36.2]} 12. Nxe5 {[%clk
0:04:15.4]} 12... Qxe5 {[%clk 0:04:36.1]} 13. Nf3 {[%clk 0:04:14.6]} 13... Qh5
{[%clk 0:04:35]} 14. Be2 {[%clk 0:04:13.7]} 14... Qh6 {[%clk 0:04:30.4]} 15. Ne5
{[%clk 0:03:55.6]} 15... Re8 {[%clk 0:04:27.2]} 16. Nd3 {[%clk 0:03:54.2]} 16...
b6 {[%clk 0:04:22.3]} 17. Nf4 {[%clk 0:03:50.7]} 17... Bb7 {[%clk 0:04:17.9]}
18. Bf3 {[%clk 0:03:49.3]} 18... Rad8 {[%clk 0:04:16.4]} 19. Qa4 {[%clk
0:03:45.8]} 19... a6 {[%clk 0:04:12.6]} 20. Rad1 {[%clk 0:03:32.4]} 20... b5
{[%clk 0:04:07.7]} 21. Qc2 {[%clk 0:03:27]} 21... g5 {[%clk 0:04:04.2]} 22. Nxd5
{[%clk 0:02:43.3]} 22... Bxd5 {[%clk 0:04:01.1]} 23. e4 {[%clk 0:02:35.1]} 23...
Be6 {[%clk 0:03:57.9]} 24. Rxd8 {[%clk 0:02:31.2]} 24... Rxd8 {[%clk 0:03:56.6]}
25. e5 {[%clk 0:02:28.6]} 25... Ng4 {[%clk 0:03:53.6]} 26. Bxg4 {[%clk 0:02:27]}
26... Bxg4 {[%clk 0:03:52.8]} 27. Qe4 {[%clk 0:02:21.1]} 27... Be6 {[%clk
0:03:49.4]} 28. f4 {[%clk 0:02:08.3]} 28... gxf4 {[%clk 0:03:47.8]} 29. gxf4
{[%clk 0:02:02]} 29... Rd2 {[%clk 0:03:46]} 30. f5 {[%clk 0:01:51.1]} 30... Bd5
{[%clk 0:03:43.6]} 31. Qg4+ {[%clk 0:01:50.2]} 31... Qg7 {[%clk 0:03:41.9]} 32.
Qxg7+ {[%clk 0:01:48.2]} 32... Kxg7 {[%clk 0:03:41.3]} 33. Rf2 {[%clk
0:01:47.7]} 33... Rxf2 {[%clk 0:03:38.1]} 34. Kxf2 {[%clk 0:01:47.2]} 34... Kh6
{[%clk 0:03:37.5]} 35. g4 {[%clk 0:01:38.9]} 35... Kg5 {[%clk 0:03:36.2]} 36.
Kg3 {[%clk 0:01:37.8]} 36... Bxa2 {[%clk 0:03:34.2]} 37. Kf3 {[%clk 0:01:36]}
37... Bd5+ {[%clk 0:03:32.9]} 0-1

[Event "Live Chess"]
[Site "Chess.com"]
[Date "2023.05.20"]
[Round "-"]
[White "LL220284LL"]
[Black "manthanit"]
[Result "1-0"]
[WhiteElo "2401"]
[BlackElo "1009"]
[TimeControl "300"]
[EndTime "13:04:34 PDT"]
[Termination "LL220284LL won by resignation"]

1. Nf3 {[%clk 0:04:57.1]} 1... e6 {[%clk 0:04:57.6]} 2. g3 {[%clk 0:04:55.5]}
2... d5 {[%clk 0:04:57.2]} 3. Bg2 {[%clk 0:04:54.8]} 3... c5 {[%clk 0:04:55.9]}
4. c4 {[%clk 0:04:54]} 4... Nf6 {[%clk 0:04:49.7]} 5. cxd5 {[%clk 0:04:52.2]}
5... Qxd5 {[%clk 0:04:44.9]} 6. d4 {[%clk 0:04:52.1]} 6... cxd4 {[%clk
0:04:42.6]} 7. Qxd4 {[%clk 0:04:50.6]} 7... Qxd4 {[%clk 0:04:41.4]} 8. Nxd4
{[%clk 0:04:50.5]} 8... Bc5 {[%clk 0:04:39.1]} 9. Nb3 {[%clk 0:04:49.1]} 9...
Bb6 {[%clk 0:04:37.9]} 10. Nc3 {[%clk 0:04:47.3]} 10... Nc6 {[%clk 0:04:37.1]}
11. Bf4 {[%clk 0:04:44]} 11... Bd7 {[%clk 0:04:35.7]} 12. Na4 {[%clk 0:04:41.8]}
12... O-O {[%clk 0:04:28.4]} 13. Nxb6 {[%clk 0:04:40.8]} 13... axb6 {[%clk
0:04:27.7]} 14. O-O {[%clk 0:04:39.3]} 14... Rab8 {[%clk 0:04:20.2]} 15. Bxb8
{[%clk 0:04:37.1]} 15... Nxb8 {[%clk 0:04:18]} 16. Rfd1 {[%clk 0:04:37]} 16...
Nc6 {[%clk 0:04:16.2]} 17. Rac1 {[%clk 0:04:34.5]} 17... Ng4 {[%clk 0:04:05.8]}
18. Nd4 {[%clk 0:04:32.3]} 18... Rd8 {[%clk 0:03:51.2]} 19. Nxc6 {[%clk
0:04:27.2]} 19... bxc6 {[%clk 0:03:50.1]} 20. Bxc6 {[%clk 0:04:24.9]} 20... Ne5
{[%clk 0:03:49.4]} 21. Bxd7 {[%clk 0:04:21.6]} 21... Rxd7 {[%clk 0:03:48.5]} 22.
Rc8+ {[%clk 0:04:20.2]} 1-0